Cogmind - Beta 11 @@@ ROGUE MODE // 2022.04.14 @ 17:21:44 Player: JuliaScythe Result: Self-destructed Performance ------------- Evolutions (4) 2000 Regions Visited (6) 1200 Robots Destroyed (27) 135 Value Destroyed (859) 859 Prototype IDs (1) 20 Alien Tech Used (0) 0 Bonus (2) 2 TOTAL SCORE: 4216 Bonus ------- High Alert Combat Kills 2 Cogmind --------- Core Integrity 781/850 Matter 152/300 Energy 150/150 System Corruption 0% Temperature Cool (0) Movement Rolling (100) Location -6/Factory Parts ------- > --- POWER (1) -------- Micro Nuclear Core > --- PROPULSION (5) --- Armored Huge Wheel > --- UTILITY (6) ------ Small Storage Unit Advanced Visual Processing Unit Improved Signal Interpreter > --- WEAPON (3) ------- Gauss Rifle Flail > --- INVENTORY (8) ---- Armored Huge Wheel Field Laser Advanced Beam Cannon Enhanced Autogun Flak Cannon Advanced Assault Cannon Peak State ------------ > --- POWER ------------ Micro Nuclear Core > --- PROPULSION ------- Armored Huge Wheel Armored Huge Wheel > --- UTILITY ---------- Small Storage Unit Advanced Visual Processing Unit Improved Signal Interpreter Improved Light Armor Plating Long-range Tractor Beam > --- WEAPON ----------- Gauss Rifle Gauss Rifle Flail > --- INVENTORY -------- Armored Huge Wheel Field Laser Advanced Beam Cannon Enhanced Autogun Flak Cannon Advanced Assault Cannon [Rating: 45] Favorites ----------- Power Ion Engine Engine Ion Engine Power Core Nuclear Core Propulsion Aluminum Leg Leg Aluminum Leg Wheel Armored Huge Wheel Utility Small Storage Unit Device Long-range Tractor Beam Storage Small Storage Unit Processor Improved Signal Interpreter Protection Hardened Light Armor Plating Weapon Light Cannon Ballistic Gun Gauss Rifle Ballistic Cannon Light Cannon Impact Weapon Flail Build | -11 -10 -9 -9 -8 -7 -6 ------- Run | Scr Mat Mat Min Mat Fac Fac Slots Evolved 8 | . . 2 . 2 2 2 Power . | . . . . . . . Propulsion 3 | . . 1 . 1 . 1 Utility 4 | . . 1 . 1 1 1 Weapon 1 | . . . . . 1 . Parts Attached 27 | . 3 5 . 10 8 1 Power 3 | . 1 . . 1 . 1 Engine 1 | . 1 . . . . . Core 2 | . . . . 1 . 1 Reactor . | . . . . . . . Propulsion 7 | . . 2 . 3 2 . Treads . | . . . . . . . Leg 5 | . . 2 . 3 . . Wheel 2 | . . . . . 2 . Hover . | . . . . . . . Flight . | . . . . . . . Utility 9 | . . 3 . 3 3 . Device 1 | . . . . 1 . . Storage . | . . . . . . . Processor 2 | . . . . . 2 . Hackware . | . . . . . . . Protection 6 | . . 3 . 2 1 . Artifact . | . . . . . . . Weapon 8 | . 2 . . 3 3 . Energy Gun . | . . . . . . . Energy Cannon . | . . . . . . . Ballistic Gun 3 | . . . . 1 2 . Ballistic Cannon 3 | . 2 . . 1 . . Launcher . | . . . . . . . Special Weapon . | . . . . . . . Impact Weapon 2 | . . . . 1 1 . Slashing Weapon . | . . . . . . . Piercing Weapon . | . . . . . . . Special Melee Weapon . | . . . . . . . Unidentified Prototypes 1 | . . . . 1 . . Parts Lost 7 | . . . . . 2 5 Power 1 | . . . . . . 1 Propulsion 1 | . . . . . . 1 Utility 4 | . . . . . 2 2 Weapon 1 | . . . . . . 1 Highest Loss Streak 3 | . . . . . 2 3 To Critical Strikes . | . . . . . . . Average Slot Usage (%) 89 | . 85 95 100 100 80 66 Engine 5 | . 14 11 11 3 . . Core 3 | . . . . 5 7 4 Leg 21 | . 28 30 33 36 3 . Wheel 4 | . . . . . 13 13 Device 4 | . . . . 8 7 3 Storage 9 | . 14 11 11 9 7 6 Processor 3 | . . . . . 8 13 Protection 12 | . . 19 22 18 9 3 Ballistic Gun 7 | . 21 . . 2 9 13 Ballistic Cannon 11 | . 7 22 22 15 4 . Impact Weapon 2 | . . . . . 5 6 Naked Turns . | . . . . . . . Heaviest Build 32 | 11 16 24 24 30 32 26 Greatest Support 56 | 20 20 30 30 50 56 56 Greatest Overweight (x) 1 | . . 1 . . 1 . Average Overweight (x) . | . . . . . . . Largest Inventory Capacity 8 | . 8 8 8 8 8 8 Average Capacity 8 | . 8 8 8 8 8 8 Most Carried 8 | . 8 8 8 8 8 7 Average Carried 6 | . 6 7 8 7 5 7 Final Capacity 8 | 8 8 8 8 8 8 8 Final Carried 8 | 6 6 8 8 8 7 7 Class Distribution -------------------- 100% | Mutant Dominant Class ---------------- Mutant | -10/Materials Mutant | -9/Materials Mutant | -9/Mines Mutant | -8/Materials Mutant | -7/Factory Mutant | -6/Factory Resources | -11 -10 -9 -9 -8 -7 -6 ----------- Run | Scr Mat Mat Min Mat Fac Fac Matter Collected 887 | 200 41 157 . 263 171 55 Remotely 489 | . . . . 263 171 55 Salvage Created 785 | . 82 247 . 205 196 55 Parts 54 | . 8 18 . 19 5 4 Haulers Intercepted 1 | . 1 . . . . . Recyclers Shooed . | . . . . . . . Parts Field Recycled . | . . . . . . . Retrieved Matter . | . . . . . . . Parts Self-Destructed . | . . . . . . . Prevented . | . . . . . . . Kills | -11 -10 -9 -9 -8 -7 -6 ------- Run | Scr Mat Mat Min Mat Fac Fac Combat Hostiles Destroyed 24 | . 1 10 . 9 3 1 Guns 3 | . . . . 2 . 1 Cannons 19 | . 1 10 . 7 1 . AOE 1 | . . . . . 1 . Classes Destroyed 9 | . 2 3 . 1 3 . Builder 1 | . . . . 1 . . Hauler 1 | . 1 . . . . . Recycler 1 | . . . . . 1 . Swarmer 10 | . . 4 . 6 . . Grunt 4 | . 1 3 . . . . Brawler 1 | . . 1 . . . . Sentry 6 | . . 2 . 3 1 . Hunter 1 | . . . . . 1 . Programmer 2 | . . . . . 1 1 Best Kill Streak 6 | . 1 5 . 6 1 1 Combat Bots Only 6 | . 1 5 . 6 1 1 Max Kills in Single Turn 2 | . 1 2 . 2 1 1 Gunslinging . | . . . . . . . Exploded 1 | . . . . . 1 . Melee . | . . . . . . . Uniques/NPCs Destroyed . | . . . . . . . Combat | -11 -10 -9 -9 -8 -7 -6 -------- Run | Scr Mat Mat Min Mat Fac Fac Damage Taken 2176 | . . 415 . 351 792 618 Core 174 | . . 30 . 34 41 69 Absorbed by Shields . | . . . . . . . Core Remaining (%) 95 | 100 100 . 92 93 94 . Volleys Fired 72 | . 4 32 . 21 9 6 Largest 2 | . 2 2 . 2 2 2 Hottest 70 | . 70 70 . 70 69 56 Shots Fired 143 | . 8 64 . 41 18 12 Gun 42 | . 6 . . 8 16 12 Cannon 101 | . 2 64 . 33 2 . Launcher . | . . . . . . . Special . | . . . . . . . Kinetic 143 | . 8 64 . 41 18 12 Thermal . | . . . . . . . Explosive . | . . . . . . . Electromagnetic . | . . . . . . . Robot Hit Streak 12 | . 6 12 . 5 5 5 Robot Miss Streak 6 | . . 6 . 5 2 1 Penetration Max . | . . . . . . . Secondary Targets . | . . . . . . . Shots Hit Robots 90 | . 6 30 . 27 18 9 Core Hits 44 | . 3 13 . 20 6 2 Critical Kills 1 | . . . . . . 1 Critical Parts Destroyed . | . . . . . . . Critical Strikes 3 | . . 2 . . . 1 Destroy 1 | . . . . . . 1 Blast 2 | . . 2 . . . . Melee Attacks 18 | . . . . 4 14 . Impact 18 | . . . . 4 14 . Slashing . | . . . . . . . Piercing . | . . . . . . . Sneak Attacks 2 | . . . . 1 1 . Combat Hostiles . | . . . . . . . Follow-up Attacks . | . . . . . . . Damage Inflicted 1933 | . 67 545 . 556 557 208 Guns 524 | . 50 . . 100 166 208 Cannons 1003 | . 17 545 . 390 51 . Explosions 116 | . . . . . 116 . Melee 290 | . . . . 66 224 . Ramming . | . . . . . . . Kinetic 1527 | . 67 545 . 490 217 208 Thermal 74 | . . . . . 74 . Explosive 42 | . . . . . 42 . Electromagnetic . | . . . . . . . Impact 290 | . . . . 66 224 . Slashing . | . . . . . . . Piercing . | . . . . . . . Highest Corruption 2 | . . . . . 2 . Average Corruption 1 | . . . . . 1 . Corruption Purged . | . . . . . . . Corruption Blocked . | . . . . . . . Effects 3 | . . . . . 3 . Matter Fused 1 | . . . . . 1 . Heat Flow Errors 1 | . . . . . 1 . Energy Discharges 1 | . . . . . 1 . Overload Shots . | . . . . . . . Overflow Damage 124 | . . . . 26 98 . Projectiles 2 | . . . . . 2 . Explosions . | . . . . . . . Melee 122 | . . . . 26 96 . Knockbacks 12 | . . 6 . 6 . . Impact 1 | . . . . 1 . . Kinetic 8 | . . 5 . 3 . . Secondary 3 | . . 1 . 2 . . Self-Inflicted Damage 220 | . . . . . 220 . Shots 3 | . . . . . 3 . Rammed . | . . . . . . . Targets Rammed . | . . . . . . . Kicked . | . . . . . . . Crushed . | . . . . . . . Highest Temperature 342 | . 9 342 . 201 208 . Average Temperature 97 | . 6 104 . 92 78 . Received Heat Transfer 345 | . . 93 . 90 18 144 Effects 2 | . . 2 . . . . Shutdowns 1 | . . 1 . . . . Matter Decay 1 | . . 1 . . . . Siege Activations . | . . . . . . . Robots Corrupted . | . . . . . . . Combat Hostiles . | . . . . . . . Parts Fried 2 | . . . . . 2 . Impact Corruptions 5 | . . . . 2 3 . Robots Melted . | . . . . . . . Combat Hostiles . | . . . . . . . Parts Melted . | . . . . . . . Heat Transferred 50 | . . . . . 50 . Parts Sabotaged . | . . . . . . . Parts Stolen . | . . . . . . . Parts Stripped . | . . . . . . . Power Chain Reactions . | . . . . . . . Missiles Intercepted . | . . . . . . . Alert | -11 -10 -9 -9 -8 -7 -6 ------- Run | Scr Mat Mat Min Mat Fac Fac Peak Influence 430 | . 82 430 167 354 325 146 Initial 167 | . . 34 167 65 83 86 Average 161 | . 13 234 167 171 180 114 Maximum Alert Level 2 | . . 2 . 1 1 . Low Security (%) 67 | . 100 44 100 46 70 100 Level 1 29 | . . 41 . 53 29 . Level 2 2 | . . 13 . . . . Level 3 . | . . . . . . . Level 4 . | . . . . . . . Level 5 . | . . . . . . . High Security . | . . . . . . . Max Security . | . . . . . . . Squads Dispatched 8 | . 1 2 . . 4 1 Investigation 2 | . . 1 . . . 1 Extermination 1 | . . . . . 1 . Reinforcement 5 | . 1 1 . . 3 . Assault . | . . . . . . . Garrison . | . . . . . . . Intercept . | . . . . . . . Searches Triggered . | . . . . . . . Construction Impeded . | . . . . . . . Haulers Reinforced . | . . . . . . . Active Scanning Responses . | . . . . . . . Cargo Convoy Interrupts . | . . . . . . . Stealth | -11 -10 -9 -9 -8 -7 -6 --------- Run | Scr Mat Mat Min Mat Fac Fac Distress Signals 4 | . . 2 . 2 . . Communications Jammed . | . . . . . . . Distress Signals . | . . . . . . . Times Spotted 57 | . 4 20 . 16 7 10 Peak Tracking Total 9 | . 2 6 . 8 3 9 Tactical Retreats . | . . . . . . . Traps | -11 -10 -9 -9 -8 -7 -6 ------- Run | Scr Mat Mat Min Mat Fac Fac Traps Triggered 1 | . . . . . . 1 Indirectly . | . . . . . . . Trap Hack Attempts . | . . . . . . . Triggered . | . . . . . . . Disarmed . | . . . . . . . Reprogrammed . | . . . . . . . Reused . | . . . . . . . Traps Extracted . | . . . . . . . Installed . | . . . . . . . Triggered . | . . . . . . . Machines | -11 -10 -9 -9 -8 -7 -6 ---------- Run | Scr Mat Mat Min Mat Fac Fac Machines Disabled 12 | . . 1 . 2 8 1 Max in Single Turn 7 | . . 1 . 1 7 1 Machines Sabotaged . | . . . . . . . Garrisons Compromised . | . . . . . . . Overloaded Fab Kills . | . . . . . . . Hacking | -11 -10 -9 -9 -8 -7 -6 --------- Run | Scr Mat Mat Min Mat Fac Fac Machines Accessed 9 | . 1 3 . 2 2 1 Terminals 8 | . 1 3 . 2 1 1 Fabricators 1 | . . . . . 1 . Repair Stations . | . . . . . . . Recycling Units . | . . . . . . . Scanalyzers . | . . . . . . . Garrison Access . | . . . . . . . Total Hacks 16 | . 1 6 . 4 4 1 Successful 8 | . 1 2 . 2 2 1 Failed 8 | . . 4 . 2 2 . Catastrophic 3 | . . 2 . 1 . . Database Lockouts . | . . . . . . . Manual 8 | . 1 3 . 3 1 . Terminals 13 | . 1 6 . 4 1 1 Fabricators 3 | . . . . . 3 . Repair Stations . | . . . . . . . Recycling Units . | . . . . . . . Scanalyzers . | . . . . . . . Garrison Access . | . . . . . . . Terminal Hacks 7 | . 1 2 . 2 1 1 Record 1 | . . . . 1 . . Open DSF 2 | . . . . . 1 1 Branch Access Points 2 | . 1 . . 1 . . Recall Investigation 1 | . . 1 . . . . Zone Layout 1 | . . 1 . . . . Fabricator Hacks 1 | . . . . . 1 . Network Status 1 | . . . . . 1 . Repair Station Hacks . | . . . . . . . Recycling Unit Hacks . | . . . . . . . Scanalyzer . | . . . . . . . Garrison Access Hacks . | . . . . . . . Unauthorized Hacks . | . . . . . . . Terminals . | . . . . . . . Fabricators . | . . . . . . . Repair Stations . | . . . . . . . Recycling Units . | . . . . . . . Scanalyzers . | . . . . . . . Garrison Access . | . . . . . . . Data Cores Recovered . | . . . . . . . Used . | . . . . . . . Hacking Detections 7 | . . 3 . 2 1 1 Full Trace Events 1 | . . 1 . . . . Feedback Events . | . . . . . . . Feedback Blocked . | . . . . . . . Robot Schematics Acquired . | . . . . . . . Robots Built . | . . . . . . . Authchips . | . . . . . . . Time . | . . . . . . . Total Robot Build Rating . | . . . . . . . Part Schematics Acquired . | . . . . . . . Parts Built . | . . . . . . . Authchips . | . . . . . . . Time . | . . . . . . . Total Part Build Rating . | . . . . . . . Parts Repaired . | . . . . . . . Time . | . . . . . . . Parts Recycled . | . . . . . . . Recycled Matter . | . . . . . . . Retrieved Matter . | . . . . . . . Retrieved Components . | . . . . . . . Parts Scanalyzed . | . . . . . . . Part Schematics Acquired . | . . . . . . . Parts Damaged . | . . . . . . . Bothacking | -11 -10 -9 -9 -8 -7 -6 ------------ Run | Scr Mat Mat Min Mat Fac Fac Used RIF Installer . | . . . . . . . Robots Hacked . | . . . . . . . Non-combat . | . . . . . . . Combat . | . . . . . . . Robot Hacks Applied . | . . . . . . . Relay Couplers Released . | . . . . . . . Fabnet Peak Effective % . | . . . . . . . Robots Rewired . | . . . . . . . Allies Hacked . | . . . . . . . Hacks Repelled . | . . . . . . . Allies | -11 -10 -9 -9 -8 -7 -6 -------- Run | Scr Mat Mat Min Mat Fac Fac Total Allies . | . . . . . . . Largest Group . | . . . . . . . Highest-Rated Group . | . . . . . . . Highest-Rated Ally . | . . . . . . . Total Orders . | . . . . . . . Ally Attacks . | . . . . . . . Total Damage . | . . . . . . . Kills . | . . . . . . . Allies Corrupted . | . . . . . . . Allies Melted . | . . . . . . . Intel | -11 -10 -9 -9 -8 -7 -6 ------- Run | Scr Mat Mat Min Mat Fac Fac Robot Analysis Total . | . . . . . . . Derelict Logs Recovered . | . . . . . . . Drone Launches . | . . . . . . . Drone Recoveries . | . . . . . . . Exploration | -11 -10 -9 -9 -8 -7 -6 ------------- Run | Scr Mat Mat Min Mat Fac Fac Turns Passed 1985 | . 282 399 140 473 591 100 Spaces Moved 1354 | 1 197 168 117 292 499 80 Core . | . . . . . . . Treads . | . . . . . . . Legs 826 | 1 197 168 117 292 51 . Wheels 528 | . . . . . 448 80 Hover . | . . . . . . . Flight . | . . . . . . . Fastest Speed 100 | 120 120 120 120 120 100 100 Average Speed 113 | 120 120 128 120 120 102 100 Slowest Speed 190 | 120 120 190 120 120 120 100 Overloaded Moves . | . . . . . . . Propulsion Burnouts . | . . . . . . . Robots Hopped . | . . . . . . . Cave-ins Triggered . | . . . . . . . Exploration Rate (%) 18 | 2 41 18 27 23 14 6 Regions Visited 6 Branch Regions 1 Pre-discovered Areas 1 | . . . 1 . . . Known Exits Taken 1 | . . . . . 1 . Unknown Exits Taken 5 | 1 1 1 1 1 . . Scrap Searched . | . . . . . . . Spaces Dug 6 | . . . . 2 4 . Terrain Destroyed 76 | . . . . 2 74 . Melee 6 | . . . . 2 4 . Projectile . | . . . . . . . AOE 70 | . . . . . 70 . Terrain Rammed . | . . . . . . . Walls Destroyed . | . . . . . . . Machines Disabled . | . . . . . . . Actions | -11 -10 -9 -9 -8 -7 -6 --------- Run | Scr Mat Mat Min Mat Fac Fac Total 1643 | . 237 286 116 372 545 87 Wait 132 | . 21 79 . 31 1 . Move 1348 | . 196 167 116 291 498 80 Hop . | . . . . . . . Pick Up 17 | . 5 2 . 6 4 . Fast Attach 11 | . 2 2 . 1 5 1 Attach 6 | . . 1 . 2 3 . Detach 3 | . . . . 1 2 . Swap 10 | . 1 2 . 7 . . Drop 26 | . 8 1 . 8 9 . Fire 72 | . 4 32 . 21 9 6 Melee 18 | . . . . 4 14 . Ram . | . . . . . . . Kick . | . . . . . . . Crush . | . . . . . . . Escape Stasis . | . . . . . . . Rewire . | . . . . . . . Trap . | . . . . . . . Miscellaneous . | . . . . . . . Route ------- -11/Scrapyard -10/Materials (discovered 2 exits: *Mat / Min) -9/Materials -9/Mines -8/Materials -7/Factory -6/Factory (discovered 1 exit: [*Fac]) History --------- Turn | Location | Event 1 | -11/Scrapyard | Discovered new exit (range 0) 1 | -11/Scrapyard | Entered Materials 189 | -10/Materials | Identified exit to Mines 256 | -10/Materials | Discovered new exit (range 16) 283 | -10/Materials | Entered another Materials area 283 | -9/Materials | Evolved 2 slots: Propulsion x1, Utility x1 312 | -9/Materials | Build established: Mutant 667 | -9/Materials | Discovered new exit (range 12) 682 | -9/Materials | Entered Mines 730 | -9/Mines | Met a Derelict bent on vengeance 803 | -9/Mines | Learned location of Storage (-7) 805 | -9/Mines | Discovered new exit (range 15) 822 | -9/Mines | Entered Materials 822 | -8/Materials | Evolved 2 slots: Propulsion x1, Utility x1 1277 | -8/Materials | Discovered new exit (range 15) 1295 | -8/Materials | Entered Factory 1295 | -7/Factory | Evolved 2 slots: Utility x1, Weapon x1 1872 | -7/Factory | Discovered new exit (range 6) 1880 | -7/Factory | Identified exit to Factory 1886 | -7/Factory | Entered another Factory area 1886 | -6/Factory | Evolved 2 slots: Propulsion x1, Utility x1 1947 | -6/Factory | Discovered new exit (range 17) 1978 | -6/Factory | Lost 3 parts (1p2u) 1986 | -6/Factory | Self-destructed Last Messages --------------- 01933_ Acquired Mic. Nuclear Core. 01936_ K-01 Serf collects debris. 01940_ Lrn. Tractor Beam destroyed. 01941_ U-05 Engineer lays Concrete. 01943_ K-01 Serf collects debris. 01944_ U-05 Engineer lays Concrete. 01947_ U-05 Engineer destroyed. 01947_ Imp. Light Armor Plating destroyed. 01947_ EXIT=FOUND 01954_ Connecting with DSF Access... 01959_ K-01 Serf collects debris. 01982_ C-30 ARC bursts open, deploying its payload. 01982_ H-66 Slayer unfolds itself. 01982_ Slug penetrates Wall. 01982_ Penetrated by Slug. 01983_ K-01 Serf cleans the Fabricator. 01985_ Penetrated by Slug. 01985_ Gauss Rifle destroyed. 01985_ Slug penetrates Wall. 01985_ Arm. Huge Wheel destroyed. Map ----- +----------------------------------------------------+ | ???????????"" """" """" #####?? #?????? | | ???????????????""" """" "" #?????? #?????? | | ??????????????"""" """" """#?????? #?????? | | ????????????" """" """" F"#????????## #?????? | | ??????????""" """" """" """#?????????? #?????? | | ???????" """" """" """" "" #??????????? #?????? | | ???? #???????????????#?????? | | ???? #?????????????????????? | | ????????##### #### #?????????????????????? | | ?????????????????# #?????????????????????? | | ?????????????????# g #?????????????????????? | | ?????????????????# gg #?????????????????????? | | ?????????????????# #?????????????????????? | | ?????????????????# #?????????????????????? | | ?????????????????# #?????????????????????? | | ?????????????????# ##### #???????????? | | ?????????????????# +???????????? | | ?????????????????# ###### #???????????? | | ?????????????????# #??????????????????????? | | ?????????????????# #??????????????????????? | | ?????????????????# #??????????????????????? | | ?????????????????# #??????????????????????? | | ?????????????????# #??????????????????????? | | ?????????????????# #??????????????????????? | | ?????????????????# #??????????????????????? | | ?????????????????# @#??????????????????????? | | ??????????""" #??????????????????????? | | ??????????"F"" h #??????????????????????? | | ??????????? "" %h +??????????????????????? | | ?????????? k #??????????????????????? | | ???????? #??????????????????????? | | ???????? #??????????????????????? | | ???????? #??????????????????????? | | ????????? ##########??????????????????????? | | ?????????"w""" ????????????????????????????????? | | ???????????""" ?????????????????????????????????? | | ????????????"" ??????????????????????????????????? | | ????????????""???????????????????????????????????? | | ?????????????????????????????????????????????????? | | ?????????????????????????????????????????????????? | | ?????????????????????????????????????????????????? | | ?????????????????????????????????????????????????? | | ?????????????????????????????????????????????????? | | ?????????????????????????????????????????????????? | | ?????????????????????????????????????????????????? | | ?????????????????????????????????????????????????? | | ?????????????????????????????????????????????????? | | ?????????????????????????????????????????????????? | | ?????????????????????????????????????????????????? | | ?????????????????????????????????????????????????? | +----------------------------------------------------+ Best States ------------- Heat Dissipation 37 Energy Generation 15 Energy Capacity 250 Matter Stores 300 Matter Capacity 300 Sight Range 20 Terrain Scan Density 10 Armor Coverage 450 Evasion (%) 55 Item Schematics ----------------- None Robot Schematics ------------------ None Fabricated ------------ Nothing Alien Tech Used ----------------- None Achievements -------------- None Challenges ------------ None Game ------ Seed FactoryGuidanceBox Manual? 0 Play Time 00:23:21 Cumulative 112.3 hours Start 2022.04.14 @ 12:50:06 End 2022.04.14 @ 17:21:44 Sessions 1 Manual Loads 0 Difficulty Rogue Special Mode None Game No. 207 Rogue 204 Adventurer 1 Explorer 2 Win Type - Total 4 Types 4/0/0/0/0/0/0/0/0 Lore% 58 Gallery% 58 Achievement% 53 Wizard Run 0 Options --------- ASCII 0 Keyboard 1 Movement Numpad Keybinds 0 Fullscreen 2 Font 18/SmallcapsGlow Map View 76x50 Tactical HUD 1 Map Filters NONE Filters NONE Steam 1 RUN: c13d328d-d6cd-4051-805c-d6a180288c20